Cogmind - Beta 16 @@@ ROGUE MODE // 2025.12.19 @ 00:40:43 Player: mephiles96 Result: Destroyed by G-50 Soldier with Heavy Laser Performance ------------- Evolutions (4) 2000 Regions Visited (8) 1600 Robots Destroyed (31) 155 Value Destroyed (1186) 1186 Prototype IDs (24) 480 Alien Tech Used (0) 0 Bonus (374) 374 TOTAL SCORE: 5795 Bonus ------- Follower Combat Kills 74 Aligned with FarCom 300 Cogmind --------- Core Integrity 0/850 Matter 255/500 Energy 59/100 System Corruption 5% Temperature Hot (240) Movement Core (800) Ox15 Location -6/Lower Caves Parts ------- > --- POWER (2) -------- (None) > --- PROPULSION (5) --- (None) > --- UTILITY (6) ------ High-capacity Storage Unit High-capacity Matter Pod Advanced ECM Suite > --- WEAPON (2) ------- (None) > --- INVENTORY (20) --- Cooled Aerolev Unit Improved Reaction Control System PSU Rigger Peak State ------------ > --- POWER ------------ Micro Nuclear Core Light Fission Core > --- PROPULSION ------- Improved Carbon-fiber Leg Improved Carbon-fiber Leg Improved Carbon-fiber Leg Improved Carbon-fiber Leg Improved Carbon-fiber Leg > --- UTILITY ---------- High-capacity Storage Unit Advanced Weight Redist. System Improved Terrain Scanner Advanced ECM Suite Improved Light Armor Plating Component Analysis Suite > --- WEAPON ----------- Advanced Assault Cannon Heavy Missile Launcher > --- INVENTORY -------- Improved Carbon-fiber Leg Improved Titanium Leg Improved Titanium Leg Improved Titanium Leg Improved Titanium Leg Cooled Aerolev Unit High-capacity Matter Pod Improved Reaction Control System PSU Rigger Shock Rifle Improved EM Pulse Cannon Assault Rifle Advanced Assault Cannon Great Axe [Rating: 60] Favorites ----------- Power Micro Nuclear Core Engine Ion Engine Power Core Micro Nuclear Core Propulsion Improved Carbon-fiber Leg Leg Improved Carbon-fiber Leg Utility High-capacity Storage Unit Device High-powered Tractor Beam Storage High-capacity Storage Unit Processor Advanced Visual Processing Unit Protection Medium Armor Plating Weapon Assault Rifle Energy Gun Shock Rifle Energy Cannon Improved EM Pulse Cannon Ballistic Gun Assault Rifle Ballistic Cannon Flak Cannon Launcher Grenade Launcher Slashing Weapon Great Axe Build | -11 -10 -10 -10 -9 -8 -7 -6 -6 ------- Run | Yrd Mat Min Exi Min Mat Fac Fac Low Slots Evolved 8 | . . . . . 4 2 2 . Power 1 | . . . . . . . 1 . Propulsion 3 | . . . . . 2 1 . . Utility 4 | . . . . . 2 1 1 . Weapon . | . . . . . . . . . Parts Attached 55 | 6 . 1 1 1 19 7 13 7 Power 5 | 1 . . . . 2 1 . 1 Engine 1 | 1 . . . . . . . . Core 4 | . . . . . 2 1 . 1 Reactor . | . . . . . . . . . Propulsion 17 | 2 . . . . 7 2 4 2 Treads . | . . . . . . . . . Leg 17 | 2 . . . . 7 2 4 2 Wheel . | . . . . . . . . . Hover . | . . . . . . . . . Flight . | . . . . . . . . . Utility 19 | 1 . . 1 1 5 4 5 2 Device 9 | . . . 1 . 3 2 2 1 Storage 4 | 1 . . . 1 1 . 1 . Processor 2 | . . . . . 1 . 1 . Hackware . | . . . . . . . . . Protection 4 | . . . . . . 2 1 1 Artifact . | . . . . . . . . . Weapon 14 | 2 . 1 . . 5 . 4 2 Energy Gun 2 | . . . . . . . 1 1 Energy Cannon 2 | . . . . . 2 . . . Ballistic Gun 4 | 2 . . . . 2 . . . Ballistic Cannon 3 | . . . . . 1 . 1 1 Launcher 2 | . . 1 . . . . 1 . Special Weapon . | . . . . . . . . . Impact Weapon . | . . . . . . . . . Slashing Weapon 1 | . . . . . . . 1 . Piercing Weapon . | . . . . . . . . . Special Melee Weapon . | . . . . . . . . . Unidentified Prototypes 1 | . . . . . 1 . . . Parts Lost 35 | . . . . . 3 . 9 23 Power 4 | . . . . . 1 . 1 2 Propulsion 11 | . . . . . . . 1 10 Utility 11 | . . . . . 1 . 6 4 Weapon 9 | . . . . . 1 . 1 7 Highest Loss Streak 23 | . . . . . 2 . 5 23 To Critical Strikes . | . . . . . . . . . Average Backups 14 | 4 7 7 7 8 15 18 19 12 Power 1 | . 1 1 1 1 1 2 1 . Propulsion 4 | 3 3 1 2 1 5 6 6 5 Utility 4 | . . 1 1 2 3 6 6 3 Weapon 4 | . 3 4 3 3 4 4 5 3 Tool/Special . | . . . . . . . . . Unused Backups 23 | . 2 3 1 1 4 2 8 2 Power 3 | . . . . . 2 . 1 . Propulsion 12 | . 2 3 . 1 . . 5 1 Utility 4 | . . . . . . 1 2 1 Weapon 4 | . . . 1 . 2 1 . . Tool/Special . | . . . . . . . . . Average Slot Usage (%) 94 | . 85 85 88 100 94 99 98 87 Engine 5 | . 14 14 14 14 1 . . . Core 6 | . . . . . 6 7 12 9 Leg 31 | . 28 28 28 28 35 38 32 29 Device 11 | . . . 3 14 18 7 13 23 Storage 9 | . 14 14 14 14 9 7 6 7 Processor 3 | . . . . . 4 6 5 . Protection 5 | . . . . . . 14 12 4 Ballistic Gun 14 | . 28 26 28 28 13 7 3 . Ballistic Cannon 3 | . . . . . 3 7 5 1 Peak Build Rating 60 | 6 7 7 14 14 46 46 59 60 Average Rating 33 | 4 6 6 8 14 38 40 54 51 On Entrance 20 | . 6 7 7 14 14 43 46 43 Avg Prop Armor Cover (%) . | . . . . . . . . . Naked Turns . | . . . . . . . . . Heaviest Build 74 | 14 14 15 16 31 58 66 74 71 Greatest Support 99 | 20 20 20 20 20 80 98 98 99 Greatest Overweight (x) 2 | . . . . 1 1 . . 2 Average Overweight (x) . | . . . . . . . . . Largest Inventory Capacity 20 | 8 8 8 8 15 20 20 20 20 Average Capacity 15 | 7 8 8 8 14 17 20 20 20 Most Carried 20 | 8 8 8 8 8 20 20 20 18 Average Carried 14 | 5 7 7 7 7 15 18 19 12 Final Capacity 20 | 8 8 8 8 15 20 20 20 20 Final Carried 20 | 6 8 8 8 8 20 20 19 3 Class Distribution -------------------- 78% | Mutant 21% | Skirmisher Dominant Class ---------------- Mutant | -10/Materials Mutant | -10/Mines Mutant | -10/Exiles Mutant | -9/Mines Skirmisher | -8/Materials Mutant | -7/Factory Mutant | -6/Factory Mutant | -6/Lower Caves Resources | -11 -10 -10 -10 -9 -8 -7 -6 -6 ----------- Run | Yrd Mat Min Exi Min Mat Fac Fac Low Matter Collected 1479 | 284 64 80 . 40 488 138 99 286 Remotely 172 | . . . . . . 138 34 . Salvage Created 919 | 78 . 116 . . 309 138 99 179 Parts 56 | 1 . 6 . . 27 5 6 11 Haulers Intercepted . | . . . . . . . . . Recyclers Shooed 1 | . . . . . 1 . . . Parts Field Recycled . | . . . . . . . . . Retrieved Matter . | . . . . . . . . . Parts Self-Destructed 7 | . . . . . . . . 7 Prevented 3 | . . . . . . . . 3 Parts Restored . | . . . . . . . . . Kills | -11 -10 -10 -10 -9 -8 -7 -6 -6 ------- Run | Yrd Mat Min Exi Min Mat Fac Fac Low Combat Hostiles Destroyed 30 | . . 6 . . 13 5 2 4 Melee 1 | . . . . . . . 1 . Guns 8 | . . 2 . . 3 2 1 . Cannons 8 | . . . . . 4 3 . 1 AOE 13 | . . 4 . . 6 . . 3 Classes Destroyed 6 | 1 . 2 . . 2 . 1 . Recycler 1 | 1 . . . . . . . . Swarmer 11 | . . 3 . . 6 . . 2 Grunt 12 | . . 3 . . 4 4 . 1 Duelist 1 | . . . . . 1 . . . Sentry 5 | . . . . . 2 1 1 1 Programmer 1 | . . . . . . . 1 . Best Kill Streak 5 | 1 . 3 . . 3 5 1 3 Combat Bots Only 5 | . . 3 . . 3 5 1 3 Max Kills in Single Turn 2 | 1 . 2 . . 2 1 1 2 Gunslinging . | . . . . . . . . . Exploded 2 | . . 2 . . 2 . . 2 Melee 1 | . . . . . . . 1 . Uniques/NPCs Destroyed . | . . . . . . . . . Combat | -11 -10 -10 -10 -9 -8 -7 -6 -6 -------- Run | Yrd Mat Min Exi Min Mat Fac Fac Low Hostile Shots Fired 422 | . . 23 . . 56 67 130 146 Missed 105 | . . 5 . . 9 22 49 20 Hits 317 | . . 18 . . 47 45 81 126 Melee 4 | . . . . . 4 . . . Projectile 313 | . . 18 . . 43 45 81 126 Critical Strikes 15 | . . . . . 2 3 3 7 Actively Blocked 1 | . . . . . . 1 . . Damage Taken 5065 | . . 214 . . 779 549 1083 2440 Core 1035 | . . 67 . . 75 40 225 628 Absorbed by Shields . | . . . . . . . . . Redirected to Shielding 200 | . . . . . . 88 112 . Core Remaining (%) 88 | 100 . . . 73 86 94 . . Volleys Fired 98 | 4 . 18 . 1 38 22 3 12 Largest 2 | 2 . 2 . 2 2 2 2 2 Hottest 138 | 40 . 40 . 40 138 57 57 119 Shots Fired 178 | 8 . 31 . 2 69 44 5 19 Gun 112 | 8 . 26 . 2 45 22 2 7 Cannon 52 | . . . . . 16 22 2 12 Launcher 14 | . . 5 . . 8 . 1 . Special . | . . . . . . . . . Kinetic 147 | 8 . 26 . 2 59 44 4 4 Thermal . | . . . . . . . . . Explosive 14 | . . 5 . . 8 . 1 . Electromagnetic 17 | . . . . . 2 . . 15 Robot Hit Streak 19 | 4 . 9 . 1 13 19 3 4 Robot Miss Streak 4 | 1 . 2 . 1 4 4 1 4 Penetration Max . | . . . . . . . . . Secondary Targets . | . . . . . . . . . Shots Hit Robots 127 | 6 . 21 . 1 43 36 10 10 Core Hits 85 | 2 . 10 . . 31 27 5 10 Critical Kills . | . . . . . . . . . Critical Parts Destroyed . | . . . . . . . . . Critical Strikes 1 | . . . . . . . 1 . Sever 1 | . . . . . . . 1 . Melee Attacks 12 | . . . . . . . 11 1 Impact . | . . . . . . . . . Slashing 12 | . . . . . . . 11 1 Piercing . | . . . . . . . . . Sneak Attacks 1 | . . . . . . . 1 . Combat Hostiles . | . . . . . . . . . Follow-up Attacks . | . . . . . . . . . Damage Inflicted 3166 | 72 . 549 . 10 945 645 425 520 Guns 1036 | 72 . 246 . 10 397 189 15 107 Cannons 890 | . . . . . 251 456 23 160 Explosions 834 | . . 303 . . 281 . 26 224 Melee 351 | . . . . . . . 351 . Ramming 55 | . . . . . 16 . 10 29 Kinetic 1690 | 72 . 246 . 10 622 645 38 57 Thermal 316 | . . 92 . . . . . 224 Explosive 518 | . . 211 . . 281 . 26 . Electromagnetic 236 | . . . . . 26 . . 210 Impact . | . . . . . . . . . Slashing 351 | . . . . . . . 351 . Piercing . | . . . . . . . . . Highest Corruption 5 | . . . . . . . 5 5 Average Corruption 4 | . . . . . . . 2 5 Corruption Purged . | . . . . . . . . . Corruption Blocked . | . . . . . . . . . Effects 7 | . . . . . . . . 7 Matter Fused 1 | . . . . . . . . 1 Heat Flow Errors 1 | . . . . . . . . 1 Energy Discharges 2 | . . . . . . . . 2 Parts Rejected 1 | . . . . . . . . 1 Data Loss (minor) 1 | . . . . . . . . 1 Weapon Failures 1 | . . . . . . . . 1 Overload Shots . | . . . . . . . . . Overflow Damage 67 | . . 7 . . 36 . 24 . Projectiles . | . . . . . . . . . Explosions 43 | . . 7 . . 36 . . . Melee 24 | . . . . . . . 24 . Knockbacks 24 | . . . . . 10 12 1 1 Impact . | . . . . . . . . . Kinetic 22 | . . . . . 9 11 1 1 Secondary 2 | . . . . . 1 1 . . Self-Inflicted Damage 318 | . . . . . 15 . 189 114 Shots 6 | . . . . . 1 . 3 2 Rammed 1 | . . . . . . . . 1 Targets Rammed 8 | . . . . . 2 . 1 5 Kicked 7 | . . . . . 2 . 1 4 Crushed . | . . . . . . . . . Highest Temperature 454 | . . 4 . . 84 53 . 454 Average Temperature 106 | . . 2 . . 29 20 . 250 Received Heat Transfer 1746 | . . 72 . . 279 303 66 1026 Effects 8 | . . . . . . . . 8 Shutdowns 1 | . . . . . . . . 1 Energy Bleed 2 | . . . . . . . . 2 Matter Decay 1 | . . . . . . . . 1 Damage (major) 4 | . . . . . . . . 4 Siege Activations . | . . . . . . . . . Martial Activations . | . . . . . . . . . Shielding Activations . | . . . . . . . . . Robots Disrupted . | . . . . . . . . . Combat Hostiles . | . . . . . . . . . Robots Corrupted . | . . . . . . . . . Combat Hostiles . | . . . . . . . . . Parts Fried . | . . . . . . . . . Impact Corruptions . | . . . . . . . . . Robots Melted . | . . . . . . . . . Combat Hostiles . | . . . . . . . . . Parts Melted . | . . . . . . . . . Heat Transferred 200 | . . 100 . . . . . 100 Parts Sabotaged . | . . . . . . . . . Parts Stolen . | . . . . . . . . . Parts Stripped . | . . . . . . . . . Power Chain Reactions 2 | . . . . . . . . 2 Alert | -11 -10 -10 -10 -9 -8 -7 -6 -6 ------- Run | Yrd Mat Min Exi Min Mat Fac Fac Low Maximum Alert Level 1 | . . 1 . . 1 . . . Low Security (%) 91 | 100 100 76 . 100 73 100 100 . Level 1 8 | . . 23 . . 26 . . . Level 2 . | . . . . . . . . . Level 3 . | . . . . . . . . . Level 4 . | . . . . . . . . . Level 5 . | . . . . . . . . . High Security . | . . . . . . . . . Max Security . | . . . . . . . . . Peak Influence 247 | 5 . 247 . . 243 167 60 . Initial 97 | . . . . . . 97 4 . Average 48 | . . 96 . . 115 91 2 . Influence Increases 1195 | 5 . 332 . . 512 120 146 80 Destroy 0b10 Robot/C 640 | . . 120 . . 300 100 40 80 Destroy 0b10 Robot/NC 5 | 5 . . . . . . . . Destroy Leader 140 | . . 30 . . 70 20 20 . Allied During Kill 6 | . . . . . 6 . . . Successful Hack 2 | . . . . . 2 . . . Disable Machine 165 | . . 105 . . 30 . 30 . Destroy Structure 117 | . . 32 . . 44 . 41 . Partial Spotted 15 | . . . . . 15 . . . Lose Combat Pursuer 105 | . . 45 . . 45 . 15 . Influence Decreases 1195 | 5 . 159 173 . 298 323 120 117 Entered New Map 312 | . . . 173 . . 117 7 15 Time Decay 748 | 5 . 159 . . 253 206 73 52 Lost Part 120 | . . . . . 30 . 40 50 Lost Ally 15 | . . . . . 15 . . . Squads Dispatched 6 | . . . . . . 2 4 . Investigation . | . . . . . . . . . Extermination 3 | . . . . . . 1 2 . Reinforcement 3 | . . . . . . 1 2 . Assault . | . . . . . . . . . Garrison . | . . . . . . . . . Intercept . | . . . . . . . . . Searches Triggered . | . . . . . . . . . Construction Impeded 1 | . . . . . . 1 . . Haulers Reinforced . | . . . . . . . . . Active Scanning Responses . | . . . . . . . . . Cargo Convoy Interrupts . | . . . . . . . . . Stealth | -11 -10 -10 -10 -9 -8 -7 -6 -6 --------- Run | Yrd Mat Min Exi Min Mat Fac Fac Low Distress Signals 2 | . . . . . 2 . . . Communications Jammed . | . . . . . . . . . Distress Signals . | . . . . . . . . . Times Spotted 49 | . 1 6 . . 19 5 7 11 Peak Tracking Total 10 | . 1 3 . . 7 5 4 10 Tactical Retreats 6 | . . 2 . . 2 . 2 . ECM-based Alert Blocks 1 | . . . . . . . 1 . Traps | -11 -10 -10 -10 -9 -8 -7 -6 -6 ------- Run | Yrd Mat Min Exi Min Mat Fac Fac Low Traps Triggered 3 | . . . . . . . 3 . Indirectly . | . . . . . . . . . Trap Hack Attempts . | . . . . . . . . . Triggered . | . . . . . . . . . Disarmed . | . . . . . . . . . Reprogrammed . | . . . . . . . . . Reused . | . . . . . . . . . Traps Extracted . | . . . . . . . . . Installed . | . . . . . . . . . Triggered . | . . . . . . . . . Machines | -11 -10 -10 -10 -9 -8 -7 -6 -6 ---------- Run | Yrd Mat Min Exi Min Mat Fac Fac Low Machines Disabled 11 | . . 7 . . 2 . 2 . Max in Single Turn 7 | . . 7 . . 1 . 2 . Machines Repaired . | . . . . . . . . . Machines Dismantled . | . . . . . . . . . Machines Sabotaged . | . . . . . . . . . Overloaded Fab Kills . | . . . . . . . . . Hacking | -11 -10 -10 -10 -9 -8 -7 -6 -6 --------- Run | Yrd Mat Min Exi Min Mat Fac Fac Low Machines Accessed 5 | . . . 1 . 3 1 . . Terminals 2 | . . . . . 2 . . . Fabricators . | . . . . . . . . . Repair Stations . | . . . . . . . . . Recycling Units 1 | . . . . . . 1 . . Scanalyzers 1 | . . . . . 1 . . . Garrison Access . | . . . . . . . . . Total Hacks 20 | . . . 1 . 10 9 . . Successful 11 | . . . 1 . 4 6 . . Failed 8 | . . . . . 5 3 . . Catastrophic 1 | . . . . . 1 . . . Database Lockouts 1 | . . . . . 1 . . . Manual 3 | . . . 1 . 2 . . . Terminals 5 | . . . . . 5 . . . Fabricators . | . . . . . . . . . Repair Stations . | . . . . . . . . . Recycling Units 9 | . . . . . . 9 . . Scanalyzers 5 | . . . . . 5 . . . Garrison Access . | . . . . . . . . . Terminal Hacks 1 | . . . 1 . . . . . Proto ID Catalog 1 | . . . 1 . . . . . Fabricator Hacks . | . . . . . . . . . Repair Station Hacks . | . . . . . . . . . Recycling Unit Hacks 6 | . . . . . . 6 . . Recycle Component 3 | . . . . . . 3 . . Process 1 | . . . . . . 1 . . Report Inventory 1 | . . . . . . 1 . . Retrieve Matter 1 | . . . . . . 1 . . Scanalyzer 4 | . . . . . 4 . . . Retrieve Study 4 | . . . . . 4 . . . Garrison Access Hacks . | . . . . . . . . . Unauthorized Hacks . | . . . . . . . . . Terminals . | . . . . . . . . . Fabricators . | . . . . . . . . . Repair Stations . | . . . . . . . . . Recycling Units . | . . . . . . . . . Scanalyzers . | . . . . . . . . . Garrison Access . | . . . . . . . . . Data Cores Recovered . | . . . . . . . . . Used . | . . . . . . . . . Hacking Detections 3 | . . . . . 3 . . . Full Trace Events . | . . . . . . . . . Feedback Events . | . . . . . . . . . Feedback Blocked . | . . . . . . . . . Robot Schematics Acquired . | . . . . . . . . . Robots Built . | . . . . . . . . . Authchips . | . . . . . . . . . Time . | . . . . . . . . . Total Robot Build Rating . | . . . . . . . . . Part Schematics Acquired . | . . . . . . . . . Parts Built . | . . . . . . . . . Authchips . | . . . . . . . . . Time . | . . . . . . . . . Total Part Build Rating . | . . . . . . . . . Part Studies Acquired 3 | . . . . . 3 . . . Parts Repaired . | . . . . . . . . . Time . | . . . . . . . . . Parts Recycled 3 | . . . . . . 3 . . Recycled Matter 55 | . . . . . . 55 . . Retrieved Matter 55 | . . . . . . 55 . . Retrieved Components . | . . . . . . . . . Parts Scanalyzed . | . . . . . . . . . Part Schematics Acquired . | . . . . . . . . . Parts Damaged . | . . . . . . . . . Bothacking | -11 -10 -10 -10 -9 -8 -7 -6 -6 ------------ Run | Yrd Mat Min Exi Min Mat Fac Fac Low Used RIF Installer . | . . . . . . . . . Robots Hacked . | . . . . . . . . . Non-combat . | . . . . . . . . . Combat . | . . . . . . . . . Robot Hacks Applied . | . . . . . . . . . Relay Couplers Released . | . . . . . . . . . Fabnet Peak Effective % . | . . . . . . . . . Robots Rewired . | . . . . . . . . . Allies Hacked . | . . . . . . . . . Hacks Repelled . | . . . . . . . . . Allies | -11 -10 -10 -10 -9 -8 -7 -6 -6 -------- Run | Yrd Mat Min Exi Min Mat Fac Fac Low Total Allies 3 | . . . . 3 . . . . Largest Group 3 | . . . . 3 3 . . . Highest-Rated Group 40 | . . . . 40 40 . . . Highest-Rated Ally 16 | . . . . 16 16 . . . Total Orders . | . . . . . . . . . Ally Attacks 28 | . . . . . 28 . . . Total Damage 252 | . . . . . 252 . . . Kills 2 | . . . . . 2 . . . Allies Corrupted . | . . . . . . . . . Allies Melted . | . . . . . . . . . Intel | -11 -10 -10 -10 -9 -8 -7 -6 -6 ------- Run | Yrd Mat Min Exi Min Mat Fac Fac Low Active Infowar (turns) 1994 | . . . . . 670 4 1291 29 Optics 1257 | . . . . . . . 1257 . Sensors 673 | . . . . . 670 3 . . Terrain 219 | . . . . . . . 190 29 ECM 36 | . . . . . . 1 35 . Robot Analysis Total . | . . . . . . . . . Derelict Logs Recovered 2 | . . 1 . . . . . 1 Drone Launches . | . . . . . . . . . Drone Recoveries . | . . . . . . . . . Exploration | -11 -10 -10 -10 -9 -8 -7 -6 -6 ------------- Run | Yrd Mat Min Exi Min Mat Fac Fac Low Turns Passed 4317 | 93 116 446 529 410 773 426 1363 161 Spaces Moved 2626 | 52 93 312 437 218 384 249 814 67 Core 4 | 4 . . . . . . . . Treads . | . . . . . . . . . Legs 2622 | 48 93 312 437 218 384 249 814 67 Wheels . | . . . . . . . . . Hover . | . . . . . . . . . Flight . | . . . . . . . . . Fastest Speed 50 | 50 120 120 120 120 122 128 120 120 Average Speed 128 | 114 120 120 120 185 131 128 122 122 Slowest Speed 270 | 120 120 120 120 190 190 128 128 270 Overloaded Moves . | . . . . . . . . . Propulsion Burnouts . | . . . . . . . . . Robots Hopped . | . . . . . . . . . Potential Cave-ins . | . . . . . . . . . Cave-ins Triggered . | . . . . . . . . . Exploration Rate (%) 33 | 4 12 84 91 44 30 7 15 10 Regions Visited 8 Branch Regions 4 Pre-discovered Areas . | . . . . . . . . . Known Exits Taken 1 | . . . . . 1 . . . Unknown Exits Taken 7 | 1 1 1 1 1 . 1 1 . Scrap Searched 2 | . . . . 1 . . . 1 Spaces Dug 1 | . . . . . . . 1 . Terrain Destroyed 158 | . . 45 . . 49 . 43 21 Melee 1 | . . . . . . . 1 . Projectile 1 | . . . . . . . . 1 AOE 156 | . . 45 . . 49 . 42 20 Terrain Rammed . | . . . . . . . . . Walls Destroyed . | . . . . . . . . . Machines Disabled . | . . . . . . . . . Actions | -11 -10 -10 -10 -9 -8 -7 -6 -6 --------- Run | Yrd Mat Min Exi Min Mat Fac Fac Low Total 3379 | 77 98 353 442 221 595 312 1163 118 Wait 444 | 4 . 14 . . 105 19 294 8 Move 2618 | 51 92 311 436 217 383 248 813 67 Hop . | . . . . . . . . . Pick Up 81 | 12 4 3 3 1 31 10 15 2 Fast Attach . | . . . . . . . . . Attach 41 | 6 . . 1 . 7 3 6 18 Detach 1 | . . . . . . . . 1 Swap 40 | . . 4 . 1 17 5 10 3 Drop 36 | . 2 3 2 1 12 5 10 1 Fire 98 | 4 . 18 . 1 38 22 3 12 Melee 12 | . . . . . . . 11 1 Ram 1 | . . . . . . . . 1 Kick 7 | . . . . . 2 . 1 4 Crush . | . . . . . . . . . Escape Stasis . | . . . . . . . . . Rewire . | . . . . . . . . . Trap . | . . . . . . . . . Miscellaneous . | . . . . . . . . . Route ------- -11/Scrapyard -10/Materials -10/Mines (discovered 2 exits: [*Mat] / *Exi) -10/Exiles (discovered 2 exits: [*Min x2]) -9/Mines (discovered 2 exits: *Mat x2) -8/Materials -7/Factory -6/Factory -6/Lower Caves (discovered 1 exit: Low) History --------- Turn | Location | Event 18 | -11/Scrapyard | Discovered new exit (range 16) 94 | -11/Scrapyard | Entered Materials 96 | -10/Materials | Discovered new exit (range 13) 210 | -10/Materials | Entered Mines 276 | -10/Mines | Learned 2 Materials zone layouts 326 | -10/Mines | Build established: Mutant 484 | -10/Mines | Discovered new exit (range 14) 609 | -10/Mines | Deemed a non-threat by the Exiles lab entrance 609 | -10/Mines | Discovered new exit (range 5) 656 | -10/Mines | Entered Exiles 674 | -10/Exiles | Discovered new exit (range 15) 702 | -10/Exiles | Met 8R-AWN 724 | -10/Exiles | Met EX-HEX 796 | -10/Exiles | Met EX-DEC 826 | -10/Exiles | Visited The Gauntlet 1002 | -10/Exiles | Met EX-BIN 1019 | -10/Exiles | Aligned with FarCom system 1020 | -10/Exiles | Given EX-Vault access code 1049 | -10/Exiles | Opened EX-Vault 1059 | -10/Exiles | Found PSU Rigger 1093 | -10/Exiles | Warned to stay clear of 0b10 Research branches 1102 | -10/Exiles | Exiles lab attacked by MAIN.C 1170 | -10/Exiles | Discovered new exit (range 14) 1185 | -10/Exiles | Left Exiles lab with PSU Rigger 1185 | -10/Exiles | Entered Mines 1199 | -9/Mines | Discovered new exit (range 7) 1418 | -9/Mines | Discovered new exit (range 11) 1441 | -9/Mines | Assisted by bots powering up and referring to "LRC-V3" 1595 | -9/Mines | Entered Materials 1595 | -8/Materials | Accompanied by 3 allies 1595 | -8/Materials | Evolved 4 slots: Propulsion x2, Utility x2 2134 | -8/Materials | Central database locked down 2274 | -8/Materials | Build established: Skirmisher 2354 | -8/Materials | Discovered new exit (range 11) 2367 | -8/Materials | Identified exit to Factory 2368 | -8/Materials | Entered Factory 2368 | -7/Factory | Evolved 2 slots: Propulsion x1, Utility x1 2679 | -7/Factory | Build established: Mutant 2777 | -7/Factory | Discovered new exit (range 6) 2794 | -7/Factory | Entered another Factory area 2794 | -6/Factory | Evolved 2 slots: Power x1, Utility x1 3980 | -6/Factory | Lost 3 parts (3u) 4141 | -6/Factory | Discovered new exit (range 14) 4154 | -6/Factory | Lost 5 parts (1p1n3u) 4157 | -6/Factory | Entered Lower Caves 4253 | -6/Lower Caves | Identified exit to Lower Caves 4303 | -6/Lower Caves | Core integrity fell below 50% 4314 | -6/Lower Caves | Core integrity fell below 20% 4318 | -6/Lower Caves | Destroyed by G-50 Soldier with Heavy Laser Last Messages --------------- 04299_ Overheating: Energy bleed (-8). 04299_ Great Axe destroyed. 04304_ Arc Thrower destroyed. 04304_ Imp. Carbon-fiber Leg destroyed. 04306_ Critical hit (Burn: +37). 04306_ Kicked G-50 Soldier. 04307_ Overheating: Matter decay (-29). 04307_ Imp. Titanium Leg destroyed. 04308_ G-50 Soldier misfires. 04308_ Kicked G-50 Soldier out of the way. 04309_ Critical hit (Burn: +37). 04311_ Adv. Weight Redist. System destroyed. 04311_ Acquired 4 matter. 04312_ System corrupted: Energy discharge (-9). 04312_ Adv. Assault Cannon destroyed. 04312_ Critical hit (Burn: +37). 04314_ Kicked G-50 Soldier. 04314_ Imp. Titanium Leg destroyed. 04316_ Component Analysis Suite destroyed. 04316_ Slammed into G-50 Soldier. Map ----- +----------------------------------------------------+ | ?????????????????????????????????????????????????? | | ???????????????????????????????????#######???????? | | ???????????????????????????????????#"""""#???????? | | ???????????????????????????????????#"""""#???????? | | ???????????????????????????????????#"""""##??????? | | ????????????????????????????????????# # ##?????? | | ?????????????????????????????????#### # ##????? | | ????????????????????????????????## ##???? | | ????????????????????????????????# ### #???? | | ????????????????????????????????# #?# #???? | | ????????????????????????????????# ### #???? | | ???????????????????#????????????# ## ##???? | | ??????????????????## ???????????## #### #????? | | ????????????####### #########??# #?# #????? | | ????????? # ##?# #?# ##???? | | ????????? #?# ## ### #???? | | ?????????????############# ### =#?#### #???? | | ??????????????? ??????# #???# #???? | | ???????????????? ?????# ##### ##???? | | ????????????????"""" ????# ######## #????? | | ??????????????? """" ???# ##??????# ## #????? | | ?????????????# """" #### ##??????# ??## #????? | | ??????????????? gg ;= ;####???#????# ###??? | | ?????????????#" ??????# ;=[; #???????##" " #??# | | ?????????????#" "#gg;g ;####???????# " " #??? | | ?????????????#" ";%g@s ;#?#??#??# ##"" "##??? | | ?????????????????++#### #% ;#????????# " #??? | | ????????????????????? # ##??????# # [ # ##?? | | ??????????????????? # ##??????### ###?#? | | ????????????????? " " # #?????????##### #????? | | ???????????????" """""# #?????????????# #????? | | ??????????????##++++###### #?????????????# #????? | | ???????????????? ?????? #?????????????# #????? | | ??????????????? ??????? #???????#?????# #?#??? | | ???????????????# ???????? ##????????????? ????? | | ???????????????? ???????? ??????????????? ????? | | ????????????????????????? ??????????????? ???#? | | ????????????????????????? ??????? ??????? ????? | | ????????????????????????? ???????????#??? ????? | | ?????????????????????????# ???????????????####???? | | ???????????????????????????????????????????????#?? | | ?????????????????????????????????????????????????? | | ?????????????????????????????????????????????????? | | ?????????????????????????????????????????????????? | | ?????????????????????????????????????????????????? | | ?????????????????????????????????????????????????? | | ?????????????????????????????????????????????????? | | ?????????????????????????????????????????????????? | | ?????????????????????????????????????????????????? | | ?????????????????????????????????????????????????? | +----------------------------------------------------+ Best States ------------- Heat Dissipation 51 Energy Generation 28 Energy Capacity 250 Matter Stores 300 Matter Capacity 500 Sight Range 20 Robot Scan Range 15 Terrain Scan Range 16 Terrain Scan Density 10 ECM Strength 2 Additional Mass Support 9 Armor Coverage 225 Propulsion Shielding 66 Weapon Shielding 66 Evasion (%) 55 Item Schematics ----------------- None Robot Schematics ------------------ None Fabricated ------------ Nothing Repaired ---------- Nothing Studied --------- Titanium Leg | -8/Materials | Hacked Flak Cannon | -8/Materials | Hacked Lgt. Nuclear Core | -8/Materials | Hacked Alien Tech Used ----------------- None Achievements -------------- None Challenges ------------ None Game ------ Seed DisassembledZipMultitool Manual? 0 Play Time 00:40:21 Cumulative 21.7 hours Start 2025.12.19 @ 00:02:51 End 2025.12.19 @ 00:40:43 Sessions 1 Manual Loads 0 Difficulty Rogue Special Mode None Game No. 25 Rogue 25 Adventurer 0 Explorer 0 Win Type - Total 0 Types 0/0/0/0/0/0/0/0/0/0 Lore% 13 Gallery% 24 Achievement% 19 Wizard Run 0 Options --------- Layout 1 ASCII 0 Keyboard 0 Movement Numpad Keybinds 1 Fullscreen 1 Font 24/Smallcaps Map View 50x35 Zoom Use 0% Tactical HUD 1 Map Filters NONE Filters NONE Steam 1 RUN: ef4684cb-e179-4b42-a314-6bc05fe09ccb